fUST/lending_fUST_20250828
["ID","MTS","AMOUNT","RATE_DAILY","PERIOD"]
[381843882,1756368667282,-431.50523187,0.00019726,2]
[381843883,1756368667291,-480.0,0.00019726,2]
[381843884,1756368667301,-1536.53,0.00019726,2]
[381843885,1756368667310,-480.0,0.00019726,2]
[381843886,1756368667320,-480.0,0.00019726,2]
[381843887,1756368667329,-652.09,0.00019726,2]
[381843888,1756368667339,-480.0,0.00019726,2]
[381843889,1756368667348,-480.0,0.00019726,2]
[381843890,1756368667357,-480.0,0.00019726,2]
[381843891,1756368667367,-480.0,0.00019726,2]
[381843892,1756368667377,-480.0,0.00019726,2]
[381843893,1756368667386,-480.0,0.00019726,2]
[381843894,1756368667395,-480.0,0.00019726,2]
[381843895,1756368667405,-480.0,0.00019726,2]
[381843896,1756368667414,-480.0,0.00019726,2]
[381843897,1756368667423,-482.0766652,0.00019726,2]
[381843898,1756368667433,-480.0,0.00019726,2]
[381843899,1756368667443,-361.80949767,0.00019726,2]
[381843900,1756368667452,-480.0,0.00019726,2]
[381843901,1756368667461,-480.0,0.00019726,2]
[381843902,1756368667471,-480.0,0.00019726,2]
[381843903,1756368667481,-480.0,0.00019726,2]
[381843904,1756368667491,-480.0,0.00019726,2]
[381843905,1756368667501,-482.08815828,0.00019726,2]
[381843906,1756368667511,-480.0,0.00019726,2]
[381843907,1756368667520,-480.0,0.00019726,2]
[381843908,1756368667529,-480.0,0.00019726,2]
[381843909,1756368667539,-480.0,0.00019726,2]
[381843910,1756368667548,-480.0,0.00019726,2]
[381843911,1756368667557,-480.0,0.00019726,2]
[381843912,1756368667567,-480.0,0.00019726,2]
[381843913,1756368667576,-480.0,0.00019726,2]
[381843914,1756368667586,-1114.98,0.00019726,2]
[381843915,1756368667598,-480.0,0.00019726,2]
[381843916,1756368667608,-480.0,0.00019726,2]
[381843917,1756368667620,-480.0,0.00019726,2]
[381843918,1756368667629,-496.98,0.00019726,2]
[381843919,1756368667642,-480.0,0.00019726,2]
[381843920,1756368667651,-755.96,0.00019726,2]
[381843921,1756368667660,-480.0,0.00019726,2]
[381843922,1756368667670,-480.0,0.00019726,2]
[381843923,1756368667680,-480.0,0.00019726,2]
[381843924,1756368667689,-480.0,0.00019726,2]
[381843925,1756368667700,-1531.96,0.00019726,2]
[381843926,1756368667710,-480.0,0.00019726,2]
[381843927,1756368667719,-480.0,0.00019726,2]
[381843928,1756368667729,-480.0,0.00019726,2]
[381843929,1756368667738,-614.44,0.00019726,2]
[381843930,1756368667748,-533.7,0.00019726,2]
[381843931,1756368667757,-480.0,0.00019726,2]
[381843932,1756368667767,-480.0,0.00019726,2]
[381843933,1756368667776,-480.0,0.00019726,2]
[381843934,1756368667786,-480.0,0.00019726,2]
[381843935,1756368667795,-480.0,0.00019726,2]
[381843936,1756368667805,-480.0,0.00019726,2]
[381843937,1756368667815,-480.0,0.00019726,2]
[381843938,1756368667825,-480.0,0.00019726,2]
[381843939,1756368667835,-480.0,0.00019726,2]
[381843940,1756368667845,-480.0,0.00019726,2]
[381843941,1756368667855,-641.43,0.00019726,2]
[381843942,1756368667868,-480.0,0.00019726,2]
[381843943,1756368667878,-480.0,0.00019726,2]
[381843944,1756368667889,-1077.03,0.00019726,2]
[381843945,1756368667899,-480.0,0.00019726,2]
[381843946,1756368667910,-480.0,0.00019726,2]
[381843947,1756368667920,-480.0,0.00019726,2]
[381843948,1756368667930,-762.03,0.00019726,2]
[381843949,1756368667940,-480.0,0.00019726,2]
[381843950,1756368667949,-3749.64,0.00019726,2]
[381843951,1756368667959,-480.0,0.00019726,2]
[381843952,1756368667968,-971.18,0.00019726,2]
[381843953,1756368667978,-939.95,0.00019726,2]
[381843954,1756368667987,-480.0,0.00019726,2]
[381843955,1756368667998,-480.0,0.00019726,2]
[381843956,1756368668007,-480.0,0.00019726,2]
[381843957,1756368668017,-664.91,0.00019726,2]
[381843958,1756368668027,-480.0,0.00019726,2]
[381843959,1756368668036,-480.0,0.00019726,2]
[381843960,1756368668046,-480.0,0.00019726,2]
[381843961,1756368668055,-480.0,0.00019726,2]
[381843962,1756368668065,-532.21,0.00019726,2]
[381843963,1756368668075,-535.45,0.00019726,2]
[381843964,1756368668084,-480.0,0.00019726,2]
[381843965,1756368668094,-483.61,0.00019726,2]
[381843966,1756368668104,-1150.69,0.00019726,2]
[381843967,1756368668117,-523.15,0.00019726,2]
[381843968,1756368668127,-1258.49,0.00019726,2]
[381843969,1756368668136,-1015.93,0.00019726,2]
[381843970,1756368668145,-480.0,0.00019726,2]
[381843971,1756368668155,-1273.65,0.00019726,2]
[381843972,1756368668164,-480.0,0.00019726,2]
[381843973,1756368668174,-481.49006348,0.00019726,2]
[381843974,1756368668184,-480.0,0.00019726,2]
[381843975,1756368668194,-480.0,0.00019726,2]
[381843976,1756368668204,-648.16,0.00019726,2]
[381843977,1756368668214,-480.0,0.00019726,2]
[381843978,1756368668224,-480.0,0.00019726,2]
[381843979,1756368668234,-480.0,0.00019726,2]
[381843980,1756368668244,-480.0,0.00019726,2]
[381843981,1756368668253,-480.0,0.00019726,2]
[381843982,1756368668263,-867.23,0.00019726,2]
[381843983,1756368668273,-480.0,0.00019726,2]
[381843984,1756368668283,-423.40303104,0.00019726,2]
[381843985,1756368668293,-608.08,0.00019726,2]
[381843986,1756368668303,-480.0,0.00019726,2]
[381843987,1756368668314,-1196.05,0.00019726,2]
[381843988,1756368668323,-482.09569288,0.00019726,2]
[381843989,1756368668333,-534.79,0.00019726,2]
[381843990,1756368668342,-480.0,0.00019726,2]
[381843991,1756368668352,-1557.82,0.00019726,2]
[381843992,1756368668364,-480.0,0.00019726,2]
[381843993,1756368668374,-488.76501945,0.00019726,2]
[381843994,1756368668384,-480.0,0.00019726,2]
[381843995,1756368668394,-182.61862154,0.00019726,2]
[381843996,1756368668404,-2120.87,0.00019726,2]
[381843997,1756368668415,-871.18,0.00019726,2]
[381843998,1756368668425,-480.0,0.00019726,2]
[381843999,1756368668435,-480.0,0.00019726,2]
[381844000,1756368668444,-480.0,0.00019726,2]
[381844001,1756368668454,-480.0,0.00019726,2]
[381844002,1756368668464,-3577.89,0.00019726,2]
[381844003,1756368668474,-480.0,0.00019726,2]
[381844004,1756368668484,-480.0,0.00019726,2]
[381844005,1756368668494,-579.54,0.00019726,2]
[381844006,1756368668503,-480.0,0.00019726,2]
[381844007,1756368668512,-480.0,0.00019726,2]
[381844008,1756368668522,-480.0,0.00019726,2]
[381844009,1756368668531,-1167.75,0.00019726,2]
[381844010,1756368668541,-480.0,0.00019726,2]
[381844011,1756368668550,-480.0,0.00019726,2]
[381844012,1756368668560,-5982.9,0.00019726,2]
[381844013,1756368668569,-2863.33,0.00019726,2]
[381844014,1756368668579,-627.97,0.00019726,2]
[381844015,1756368668589,-953.03,0.00019726,2]
[381844016,1756368668598,-480.0,0.00019726,2]
[381844017,1756368668607,-480.0,0.00019726,2]
[381844018,1756368668619,-480.0,0.00019726,2]
[381844019,1756368668628,-480.0,0.00019726,2]
[381844020,1756368668638,-480.0,0.00019726,2]
[381844021,1756368668647,-480.0,0.00019726,2]
[381844022,1756368668657,-602.82,0.00019726,2]
[381844023,1756368668666,-504.57,0.00019726,2]
[381844024,1756368668675,-611.16,0.00019726,2]
[381844025,1756368668686,-480.0,0.00019726,2]
[381844026,1756368668695,-480.0,0.00019726,2]
[381844027,1756368668704,-480.0,0.00019726,2]
[381844028,1756368668714,-480.0,0.00019726,2]
[381844029,1756368668723,-1084.84,0.00019726,2]
[381844030,1756368668732,-434.58168498,0.00019726,2]
[381844031,1756368668741,-810.87,0.00019726,2]
[381844032,1756368668750,-616.68303998,0.00019726,2]
[381844033,1756368668760,-1208.41,0.00019726,2]
[381844034,1756368668769,-480.0,0.00019726,2]
[381844035,1756368668779,-480.0,0.00019726,2]
[381844036,1756368668788,-480.0,0.00019726,2]
[381844037,1756368668797,-992.77,0.00019726,2]
[381844038,1756368668807,-2675.13,0.00019726,2]
[381844039,1756368668816,-480.0,0.00019726,2]
[381844040,1756368668825,-480.0,0.00019726,2]
[381844041,1756368668835,-480.0,0.00019726,2]
[381844042,1756368668844,-154.15133745,0.00019726,2]
[381844043,1756368668853,-480.0,0.00019726,2]
[381844044,1756368668864,-3538.8,0.00019726,2]
[381844045,1756368668874,-2959.19,0.00019726,2]
[381844046,1756368668883,-480.0,0.00019726,2]
[381844047,1756368668893,-551.89,0.00019726,2]
[381844048,1756368668903,-599.43,0.00019726,2]
[381844049,1756368668912,-575.2,0.00019726,2]
[381844050,1756368668922,-480.0,0.00019726,2]
[381844051,1756368668931,-480.0,0.00019726,2]
[381844052,1756368668941,-2408.95,0.00019726,2]
[381844053,1756368668950,-480.0,0.00019726,2]
[381844054,1756368668960,-480.0,0.00019726,2]
[381844055,1756368668970,-2875.38,0.00019726,2]
[381844056,1756368668979,-480.0,0.00019726,2]
[381844057,1756368668988,-480.0,0.00019726,2]
[381844058,1756368668998,-480.0,0.00019726,2]
[381844059,1756368669007,-480.0,0.00019726,2]
[381844060,1756368669018,-480.0,0.00019726,2]
[381844061,1756368669027,-480.0,0.00019726,2]
[381844062,1756368669037,-480.0,0.00019726,2]
[381844063,1756368669046,-590.63,0.00019726,2]
[381844064,1756368669055,-1940.49,0.00019726,2]
[381844065,1756368669065,-480.0,0.00019726,2]
[381844066,1756368669075,-480.0,0.00019726,2]
[381844067,1756368669084,-726.67,0.00019726,2]
[381844068,1756368669094,-480.0,0.00019726,2]
[381844069,1756368669104,-480.0,0.00019726,2]
[381844070,1756368669116,-4004.04,0.00019726,2]
[381844071,1756368669125,-349.40172221,0.00019726,2]
[381844072,1756368669135,-1418.72,0.00019726,2]
[381844073,1756368669144,-480.0,0.00019726,2]
[381844074,1756368669154,-328.04481692,0.00019726,2]
[381844075,1756368669163,-480.0,0.00019726,2]
[381844076,1756368669172,-350.28734603,0.00019726,2]
[381844077,1756368669182,-480.0,0.00019726,2]
[381844078,1756368669192,-1955.38,0.00019726,2]
[381844079,1756368669202,-480.0,0.00019726,2]
[381844080,1756368669211,-480.0,0.00019726,2]
[381844081,1756368669220,-668.65,0.00019726,2]
[381844082,1756368669230,-545.08377483,0.00019726,2]
[381844083,1756368669240,-480.0,0.00019726,2]
[381844084,1756368669250,-400.0,0.00019726,2]
[381844085,1756368669260,-480.0,0.00019726,2]
[381844086,1756368669269,-3210.04,0.00019726,2]
[381844087,1756368669278,-480.0,0.00019726,2]
[381844088,1756368669287,-480.0,0.00019726,2]
[381844089,1756368669297,-480.0,0.00019726,2]
[381844090,1756368669307,-5317.78,0.00019726,2]
[381844091,1756368669316,-1343.44,0.00019726,2]
[381844092,1756368669326,-804.04,0.00019726,2]
[381844093,1756368669335,-480.0,0.00019726,2]
[381844094,1756368669345,-841.22,0.00019726,2]
[381844095,1756368669355,-480.0,0.00019726,2]
[381844096,1756368669366,-480.0,0.00019726,2]
[381844097,1756368669525,-481.93370763,0.00019726,2]
[381844098,1756368669536,-480.0,0.00019726,2]
[381844099,1756368669546,-3006.69,0.00019726,2]
[381844100,1756368669555,-480.0,0.00019726,2]
[381844101,1756368669565,-480.0,0.00019726,2]
[381844102,1756368669575,-685.18,0.00019726,2]
[381844103,1756368669585,-480.0,0.00019726,2]
[381844104,1756368669596,-480.0,0.00019726,2]
[381844105,1756368669609,-689.22,0.00019726,2]
[381844106,1756368669621,-480.0,0.00019726,2]
[381844107,1756368669631,-480.0,0.00019726,2]
[381844108,1756368669641,-484.47,0.00019726,2]
[381844109,1756368669651,-482.06861907,0.00019726,2]
[381844110,1756368669660,-480.0,0.00019726,2]
[381844111,1756368669670,-574.94,0.00019726,2]
[381844112,1756368669681,-480.0,0.00019726,2]
[381844113,1756368669690,-480.0,0.00019726,2]
[381844114,1756368669700,-666.61,0.00019726,2]
[381844115,1756368669709,-480.0,0.00019726,2]
[381844116,1756368669719,-753.35,0.00019726,2]
[381844117,1756368669728,-591.14,0.00019726,2]
[381844118,1756368669737,-480.0,0.00019726,2]
[381844119,1756368669746,-480.0,0.00019726,2]
[381844120,1756368669756,-3346.08,0.00019726,2]
[381844121,1756368669765,-480.0,0.00019726,2]
[381844122,1756368669774,-480.0,0.00019726,2]
[381844123,1756368669784,-2256.48,0.00019726,2]
[381844124,1756368669793,-480.0,0.00019726,2]
[381844125,1756368669803,-814.44,0.00019726,2]
[381844126,1756368669813,-500.0,0.00019742,2]
[381844127,1756368669823,-168.0,0.00019756,2]
[381844128,1756368669833,-501.36557393,0.00019773,2]
[381844129,1756368669842,-159.0,0.000198,4]
[381844130,1756368669852,-159.0,0.000198,4]
[381844131,1756368669863,-159.0,0.000198,4]
[381844132,1756368669872,-600.0,0.00019827,2]
[381844133,1756368669881,-203.6223676,0.00019829,2]
[381844134,1756368669890,-449.542635,0.00019863,2]
[381844135,1756368669900,-19143.72017556,0.000199,2]
[381844136,1756368669909,-500.0,0.00019973,2]
[381844137,1756368669919,-500.0,0.00019973,2]
[381844138,1756368669929,-500.0,0.00019973,2]
[381844139,1756368669938,-500.0,0.00019973,2]
[381844140,1756368669947,-500.0,0.00019973,2]
[381844141,1756368669956,-206.02767631,0.00019973,2]
[381844142,1756368669967,-500.0,0.00019973,2]
[381844143,1756368669976,-500.0,0.00019973,2]
[381844144,1756368669986,-500.0,0.00019973,2]
[381844145,1756368669996,-500.0,0.00019973,2]
[381844146,1756368670005,-500.0,0.00019973,2]
[381844147,1756368670015,-500.0,0.00019973,2]
[381844148,1756368670025,-500.0,0.00019973,2]
[381844149,1756368670034,-500.0,0.00019973,2]
[381844150,1756368670043,-500.0,0.00019973,2]
[381844151,1756368670052,-500.0,0.00019973,2]
[381844152,1756368670061,-500.0,0.00019973,2]
[381844153,1756368670071,-160.43103054,0.00019973,2]
[381844154,1756368670080,-151.0,0.0002,2]
[381844155,1756368670090,-151.0,0.0002,2]
[381844156,1756368670100,-151.0,0.0002,2]
[381844157,1756368670109,-151.0,0.0002,2]
[381844158,1756368670119,-198.75190386,0.0002,2]
[381844159,1756368670128,-151.0,0.0002,2]
[381844160,1756368670137,-151.0,0.0002,2]
[381844161,1756368670147,-151.84287492,0.0002,2]
[381844162,1756368670156,-183.93517409,0.0002,2]
[381844163,1756368670167,-1272.0,0.0002,2]
[381844164,1756368670176,-500.0,0.0002,2]
[381844165,1756368670186,-500.0,0.0002,2]
[381844166,1756368670196,-500.0,0.0002,2]
[381844167,1756368670206,-765.68652915,0.0002,2]
[381844168,1756368670216,-3648.96821314,0.0002,20]
[381844169,1756368670226,-12081.79945286,0.0002,2]
[381844170,1756368670235,-96398.54745622,0.0002,2]
[381844171,1756368670245,-18988.2828485,0.0002,2]
[381844172,1756368670254,-4499.16788012,0.0002,10]
[381844173,1756368670264,-2735.0,0.0002,7]
[381844174,1756368670273,-523.68949485,0.0002,2]
[381844175,1756368670282,-8575.05444999,0.0002,2]
[381844176,1756368670292,-33698.20672081,0.0002,2]
[381844177,1756368670302,-50819.55308118,0.0002,2]
[381844178,1756368670311,-480.0,0.0002,2]
[381844179,1756368670320,-480.0,0.0002,2]
[381844180,1756368670329,-480.0,0.0002,2]
[381844181,1756368670338,-480.0,0.0002,2]
[381844182,1756368670349,-480.0,0.0002,2]
[381844183,1756368670360,-480.0,0.0002,2]
[381844184,1756368670370,-480.0,0.0002,2]
[381844185,1756368670379,-480.0,0.0002,2]
[381844186,1756368670389,-480.0,0.0002,2]
[381844187,1756368670399,-480.0,0.0002,2]
[381844188,1756368670409,-480.0,0.0002,2]
[381844189,1756368670418,-480.0,0.0002,2]
[381844190,1756368670427,-688.44,0.0002,2]
[381844191,1756368670437,-538.35,0.0002,2]
[381844192,1756368670446,-480.0,0.0002,2]
[381844193,1756368670456,-480.0,0.0002,2]
[381844194,1756368670465,-480.0,0.0002,2]
[381844195,1756368670474,-669.69,0.0002,2]
[381844196,1756368670483,-480.0,0.0002,2]
[381844197,1756368670492,-501.14,0.0002,2]
[381844198,1756368670501,-480.0,0.0002,2]
[381844199,1756368670511,-480.0,0.0002,2]
[381844200,1756368670520,-480.0,0.0002,2]
[381844201,1756368670529,-480.0,0.0002,2]
[381844202,1756368670538,-480.0,0.0002,2]
[381844203,1756368670547,-480.0,0.0002,2]
[381844204,1756368670557,-480.0,0.0002,2]
[381844205,1756368670567,-480.0,0.0002,2]
[381844206,1756368670577,-480.0,0.0002,2]
[381844207,1756368670587,-480.0,0.0002,2]
[381844208,1756368670596,-480.0,0.0002,2]
[381844209,1756368670608,-480.0,0.0002,2]
[381844210,1756368670620,-480.0,0.0002,2]
[381844211,1756368670629,-480.0,0.0002,2]
[381844212,1756368670639,-480.0,0.0002,2]
[381844213,1756368670649,-480.0,0.0002,2]
[381844214,1756368670660,-802.51,0.0002,2]
[381844215,1756368670669,-480.0,0.0002,2]
[381844216,1756368670679,-512.97,0.0002,2]
[381844217,1756368670688,-480.0,0.0002,2]
[381844218,1756368670697,-480.0,0.0002,2]
[381844219,1756368670706,-963.41,0.0002,2]
[381844220,1756368670715,-491.78,0.0002,2]
[381844221,1756368670725,-480.0,0.0002,2]
[381844222,1756368670734,-339.27236018,0.0002,2]
[381844223,1756368670743,-659.7,0.0002,2]
[381844224,1756368670753,-480.0,0.0002,2]
[381844225,1756368670762,-732.68,0.0002,2]
[381844226,1756368670772,-480.0,0.0002,2]
[381844227,1756368670781,-480.0,0.0002,2]
[381844228,1756368670790,-780.03,0.0002,2]
[381844229,1756368670800,-480.0,0.0002,2]
[381844230,1756368670809,-480.0,0.0002,2]
[381844231,1756368670819,-423.53665202,0.0002,2]
[381844232,1756368670828,-480.0,0.0002,2]
[381844233,1756368670837,-480.0,0.0002,2]
[381844234,1756368670847,-480.0,0.0002,2]
[381844235,1756368670856,-498.42,0.0002,2]
[381844236,1756368670867,-480.0,0.0002,2]
[381844237,1756368670878,-480.0,0.0002,2]
[381844238,1756368670887,-480.0,0.0002,2]
[381844239,1756368670907,-480.0,0.0002,2]
[381844240,1756368670924,-480.0,0.0002,2]
[381844241,1756368670937,-480.0,0.0002,2]
[381844242,1756368670953,-480.0,0.0002,2]
[381844243,1756368670968,-480.0,0.0002,2]
[381844244,1756368670984,-480.0,0.0002,2]
[381844245,1756368671001,-480.0,0.0002,2]
[381844246,1756368671017,-480.0,0.0002,2]
[381844247,1756368671034,-480.0,0.0002,2]
[381844248,1756368671049,-480.0,0.0002,2]
[381844249,1756368671066,-480.0,0.0002,2]
[381844250,1756368671079,-480.0,0.0002,2]
[381844251,1756368671092,-480.0,0.0002,2]
[381844252,1756368671107,-480.0,0.0002,2]
[381844253,1756368671123,-480.0,0.0002,2]
[381844254,1756368671139,-526.17,0.0002,2]
[381844255,1756368671156,-480.0,0.0002,2]
[381844256,1756368671169,-1929.93,0.0002,2]
[381844257,1756368671181,-480.0,0.0002,2]
[381844258,1756368671198,-502.21,0.0002,2]
[381844259,1756368671213,-480.0,0.0002,2]
[381844260,1756368671226,-481.53684633,0.0002,2]
[381844261,1756368671239,-595.92,0.0002,2]
[381844262,1756368671251,-480.0,0.0002,2]
[381844263,1756368671263,-480.0,0.0002,2]
[381844264,1756368671277,-480.0,0.0002,2]
[381844265,1756368671289,-480.0,0.0002,2]
[381844266,1756368671302,-598.45,0.0002,2]
[381844267,1756368671315,-481.65838293,0.0002,2]
[381844268,1756368671328,-480.0,0.0002,2]
[381844269,1756368671340,-480.0,0.0002,2]
[381844270,1756368671353,-480.0,0.0002,2]
[381844271,1756368671365,-480.0,0.0002,2]
[381844272,1756368671378,-480.0,0.0002,2]
[381844273,1756368671390,-480.0,0.0002,2]
[381844274,1756368671403,-480.0,0.0002,2]
[381844275,1756368671416,-480.0,0.0002,2]
[381844276,1756368671428,-480.0,0.0002,2]
[381844277,1756368671441,-480.0,0.0002,2]
[381844278,1756368671454,-872.89,0.0002,2]
[381844279,1756368671468,-480.0,0.0002,2]
[381844280,1756368671482,-480.0,0.0002,2]
[381844281,1756368671495,-480.0,0.0002,2]
[381844282,1756368671508,-976.25,0.0002,2]
[381844283,1756368671521,-480.0,0.0002,2]
[381844284,1756368671534,-1373.25,0.0002,2]
[381844285,1756368671547,-480.0,0.0002,2]
[381844286,1756368671559,-480.0,0.0002,2]
[381844287,1756368671572,-480.0,0.0002,2]
[381844288,1756368671584,-480.0,0.0002,2]
[381844289,1756368671597,-504.19,0.0002,2]
[381844290,1756368671611,-767.13,0.0002,2]
[381844291,1756368671624,-2382.1,0.0002,2]
[381844292,1756368671636,-2382.1,0.0002,2]
[381844293,1756368671650,-520.54,0.0002,2]
[381844294,1756368671662,-480.0,0.0002,2]
[381844295,1756368671675,-480.0,0.0002,2]
[381844296,1756368671688,-480.0,0.0002,2]
[381844297,1756368671708,-480.0,0.0002,2]
[381844298,1756368671725,-480.0,0.0002,2]
[381844299,1756368671740,-480.0,0.0002,2]
[381844300,1756368671756,-480.0,0.0002,2]
[381844301,1756368671771,-489.02,0.0002,2]
[381844302,1756368671786,-480.0,0.0002,2]
[381844303,1756368671801,-481.28333104,0.0002,2]
[381844304,1756368671815,-480.0,0.0002,2]
[381844305,1756368671829,-480.0,0.0002,2]
[381844306,1756368671844,-480.0,0.0002,2]
[381844307,1756368671859,-589.61,0.0002,2]
[381844308,1756368671874,-480.0,0.0002,2]
[381844309,1756368671888,-480.0,0.0002,2]
[381844310,1756368671901,-480.0,0.0002,2]
[381844311,1756368671914,-480.0,0.0002,2]
[381844312,1756368671928,-480.0,0.0002,2]
[381844313,1756368671941,-381.91875296,0.0002,2]
[381844314,1756368671954,-644.86,0.0002,2]
[381844315,1756368671967,-505.14,0.0002,2]
[381844316,1756368671980,-480.0,0.0002,2]
[381844317,1756368671993,-480.0,0.0002,2]
[381844318,1756368672006,-649.78,0.0002,2]
[381844319,1756368672020,-480.0,0.0002,2]
[381844320,1756368672033,-500.0,0.0002,2]
[381844321,1756368672046,-484.69873127,0.0002,2]
[381844322,1756368672060,-593.44,0.0002,2]
[381844323,1756368672072,-480.0,0.0002,2]
[381844324,1756368672089,-480.0,0.0002,2]
[381844325,1756368672101,-480.0,0.0002,2]
[381844326,1756368672115,-480.0,0.0002,2]
[381844327,1756368672128,-480.0,0.0002,2]
[381844328,1756368672140,-604.94,0.0002,2]
[381844329,1756368672153,-1278.6,0.0002,2]
[381844330,1756368672166,-480.0,0.0002,2]
[381844331,1756368672179,-480.0,0.0002,2]
[381844332,1756368672191,-480.0,0.0002,2]
[381844333,1756368672203,-823.23,0.0002,2]
[381844334,1756368672215,-480.0,0.0002,2]
[381844335,1756368672228,-541.49,0.0002,2]
[381844336,1756368672240,-485.61,0.0002,2]
[381844337,1756368672253,-480.0,0.0002,2]
[381844338,1756368672266,-480.0,0.0002,2]
[381844339,1756368672278,-480.0,0.0002,2]
[381844340,1756368672291,-480.0,0.0002,2]
[381844341,1756368672303,-480.0,0.0002,2]
[381844342,1756368672316,-480.0,0.0002,2]
[381844343,1756368672329,-480.0,0.0002,2]
[381844344,1756368672341,-480.0,0.0002,2]
[381844345,1756368672354,-970.42,0.0002,2]
[381844346,1756368672365,-702.47,0.0002,2]
[381844347,1756368672377,-480.0,0.0002,2]
[381844348,1756368672390,-480.0,0.0002,2]
[381844349,1756368672403,-480.0,0.0002,2]
[381844350,1756368672415,-480.0,0.0002,2]
[381844351,1756368672428,-480.0,0.0002,2]
[381844352,1756368672440,-480.0,0.0002,2]
[381844353,1756368672453,-480.0,0.0002,2]
[381844354,1756368672466,-480.0,0.0002,2]
[381844355,1756368672478,-480.0,0.0002,2]
[381844356,1756368672490,-987.37,0.0002,2]
[381844357,1756368672502,-801.09,0.0002,2]
[381844358,1756368672514,-480.0,0.0002,2]
[381844359,1756368672526,-480.0,0.0002,2]
[381844360,1756368672539,-480.0,0.0002,2]
[381844361,1756368672551,-480.0,0.0002,2]
[381844362,1756368672563,-1536.53,0.0002,2]
[381844363,1756368672574,-480.0,0.0002,2]
[381844364,1756368672586,-480.0,0.0002,2]
[381844365,1756368672598,-652.09,0.0002,2]
[381844366,1756368672615,-480.0,0.0002,2]
[381844367,1756368672627,-480.0,0.0002,2]
[381844368,1756368672640,-480.0,0.0002,2]
[381844369,1756368672652,-480.0,0.0002,2]
[381844370,1756368672665,-480.0,0.0002,2]
[381844371,1756368672675,-480.0,0.0002,2]
[381844372,1756368672684,-480.0,0.0002,2]
[381844373,1756368672694,-292.47209949,0.0002,2]
[381844374,1756368672704,-480.0,0.0002,2]
[381844375,1756368672952,-480.0,0.0002,2]
[381844376,1756368672980,-480.0,0.0002,2]
[381844377,1756368672990,-480.0,0.0002,2]
[381844378,1756368673003,-480.0,0.0002,2]
[381844379,1756368673016,-480.0,0.0002,2]
[381844380,1756368673026,-480.0,0.0002,2]
[381844381,1756368673036,-480.0,0.0002,2]